[Event "*** Titled Tuesday Blitz"]
[Site "Chess.com"]
[Date "2019.09.03"]
[Round "6"]
[White "Padenie_Zvezd"]
[Black "chegueps"]
[Result "0-1"]
[WhiteElo "2768"]
[BlackElo "2552"]
[TimeControl "180+2"]
[EndTime "16:19:42 PDT"]
[Termination "chegueps won by resignation"]

1. b4 {[%clk 0:02:59.4]} 1... a5 {[%clk 0:02:49]} 2. b5 {[%clk 0:02:59.5]} 2...
b6 {[%clk 0:02:50]} 3. Bb2 {[%clk 0:02:59.6]} 3... Bb7 {[%clk 0:02:51.2]} 4. Nf3
{[%clk 0:03:00.4]} 4... Nf6 {[%clk 0:02:50]} 5. c4 {[%clk 0:03:00.6]} 5... e6
{[%clk 0:02:51]} 6. Nc3 {[%clk 0:03:01.5]} 6... d5 {[%clk 0:02:51.9]} 7. cxd5
{[%clk 0:02:59.9]} 7... Nxd5 {[%clk 0:02:53.6]} 8. e3 {[%clk 0:03:00]} 8... Nd7
{[%clk 0:02:46.1]} 9. Bc4 {[%clk 0:03:00.6]} 9... N7f6 {[%clk 0:02:46.5]} 10.
O-O {[%clk 0:03:01.4]} 10... Bd6 {[%clk 0:02:40.9]} 11. Nxd5 {[%clk 0:02:58.6]}
11... Nxd5 {[%clk 0:02:33.6]} 12. Bxg7 {[%clk 0:02:47.1]} 12... Rg8 {[%clk
0:02:29.9]} 13. Bb2 {[%clk 0:02:48.7]} 13... Qe7 {[%clk 0:02:08.1]} 14. g3
{[%clk 0:02:49.6]} 14... O-O-O {[%clk 0:01:51.3]} 15. Nd4 {[%clk 0:02:50.2]}
15... Qh4 {[%clk 0:01:20.8]} 16. Qf3 {[%clk 0:02:37]} 16... Ne7 {[%clk
0:01:17.2]} 17. e4 {[%clk 0:01:45.4]} 17... Bxe4 {[%clk 0:01:16.3]} 18. Qe3
{[%clk 0:01:46.9]} 18... Bc5 {[%clk 0:01:16.2]} 19. Rfe1 {[%clk 0:01:43.9]}
19... Bb7 {[%clk 0:01:14.4]} 20. Rac1 {[%clk 0:01:29]} 20... Bxd4 {[%clk
0:01:14.2]} 21. Bxd4 {[%clk 0:01:27.9]} 21... Qxd4 {[%clk 0:01:15.7]} 22. Bxe6+
{[%clk 0:01:24.5]} 22... fxe6 {[%clk 0:00:59.6]} 23. Qxe6+ {[%clk 0:01:26.4]}
23... Rd7 {[%clk 0:00:58.7]} 24. Re5 {[%clk 0:01:06.3]} 24... Qxd2 {[%clk
0:00:47.2]} 25. Rce1 {[%clk 0:01:02.5]} 25... Bd5 {[%clk 0:00:48.2]} 26. Qf6
{[%clk 0:00:58.8]} 26... Ng6 {[%clk 0:00:45.9]} 27. R5e2 {[%clk 0:00:57.7]}
27... Qd3 {[%clk 0:00:41.3]} 28. Re3 {[%clk 0:00:59.2]} 28... Qxb5 {[%clk
0:00:40]} 29. Rc3 {[%clk 0:00:49.9]} 29... Rf7 {[%clk 0:00:36.6]} 30. Qd4 {[%clk
0:00:47.6]} 30... Re7 {[%clk 0:00:33.2]} 31. Rec1 {[%clk 0:00:47]} 31... Rge8
{[%clk 0:00:31.4]} 32. Qd2 {[%clk 0:00:47.4]} 32... Ne5 {[%clk 0:00:28.5]} 33.
a4 {[%clk 0:00:35.3]} 33... Nf3+ {[%clk 0:00:29.7]} 34. Rxf3 {[%clk 0:00:35.6]}
34... Qd7 {[%clk 0:00:21.8]} 35. Rd3 {[%clk 0:00:36]} 35... Re2 {[%clk 0:00:20]}
36. Qc3 {[%clk 0:00:36.5]} 36... c5 {[%clk 0:00:18.6]} 37. Qf6 {[%clk
0:00:33.9]} 37... Re1+ {[%clk 0:00:15.4]} 0-1

[Event "*** Titled Tuesday Blitz"]
[Site "Chess.com"]
[Date "2019.09.03"]
[Round "6"]
[White "Jenia84"]
[Black "tbalabayev"]
[Result "0-1"]
[WhiteElo "2249"]
[BlackElo "2380"]
[TimeControl "180+2"]
[EndTime "16:19:42 PDT"]
[Termination "tbalabayev won by resignation"]

1. e4 {[%clk 0:03:01.9]} 1... c5 {[%clk 0:03:00.6]} 2. Nf3 {[%clk 0:03:01.6]}
2... Nc6 {[%clk 0:03:02]} 3. d4 {[%clk 0:03:00.8]} 3... cxd4 {[%clk 0:03:03.9]}
4. Nxd4 {[%clk 0:03:01.8]} 4... Nf6 {[%clk 0:03:05.5]} 5. Nc3 {[%clk 0:03:01.9]}
5... e5 {[%clk 0:03:06.4]} 6. Ndb5 {[%clk 0:03:03]} 6... d6 {[%clk 0:03:07.5]}
7. Nd5 {[%clk 0:03:03.9]} 7... Nxd5 {[%clk 0:03:07.5]} 8. exd5 {[%clk
0:03:04.6]} 8... Nb8 {[%clk 0:03:09.1]} 9. c4 {[%clk 0:03:05.4]} 9... Be7 {[%clk
0:03:10]} 10. Be2 {[%clk 0:03:02]} 10... O-O {[%clk 0:03:10.1]} 11. O-O {[%clk
0:03:02]} 11... a6 {[%clk 0:02:47.6]} 12. Nc3 {[%clk 0:03:01.7]} 12... f5 {[%clk
0:02:48.5]} 13. f4 {[%clk 0:03:02]} 13... Nd7 {[%clk 0:02:46.3]} 14. Be3 {[%clk
0:02:56.2]} 14... exf4 {[%clk 0:02:32.7]} 15. Bxf4 {[%clk 0:02:49.6]} 15... Qb6+
{[%clk 0:02:32.4]} 16. Rf2 {[%clk 0:02:14.4]} 16... Qxb2 {[%clk 0:02:29.1]} 17.
Na4 {[%clk 0:02:13.5]} 17... Qf6 {[%clk 0:02:21.9]} 18. c5 {[%clk 0:02:07.4]}
18... g5 {[%clk 0:01:37.9]} 19. Bd2 {[%clk 0:01:12.6]} 19... dxc5 {[%clk
0:01:27.8]} 20. Bc3 {[%clk 0:01:12.2]} 20... Qd6 {[%clk 0:01:27.7]} 21. Qc2
{[%clk 0:00:55.5]} 21... Nf6 {[%clk 0:01:19]} 22. Bxf6 {[%clk 0:00:48.8]} 22...
Rxf6 {[%clk 0:01:16.7]} 23. Re1 {[%clk 0:00:45.1]} 23... Bd7 {[%clk 0:01:11.3]}
24. Bd3 {[%clk 0:00:34.7]} 24... Raf8 {[%clk 0:01:02.1]} 25. Nb6 {[%clk
0:00:30.1]} 25... Be8 {[%clk 0:00:25.3]} 26. Nc4 {[%clk 0:00:28.9]} 26... Qd8
{[%clk 0:00:20.4]} 27. Bxf5 {[%clk 0:00:26.5]} 27... Bg6 {[%clk 0:00:20]} 28.
Bxg6 {[%clk 0:00:21.5]} 28... Rxf2 {[%clk 0:00:19.9]} 29. Bxh7+ {[%clk
0:00:21.9]} 29... Kh8 {[%clk 0:00:21.1]} 30. Qc3+ {[%clk 0:00:22.2]} 30... Bf6
{[%clk 0:00:19.6]} 31. Qh3 {[%clk 0:00:22.6]} 31... Kg7 {[%clk 0:00:16.9]} 32.
Bf5 {[%clk 0:00:19.4]} 32... Rxf5 {[%clk 0:00:16.5]} 33. Qg4 {[%clk 0:00:17.4]}
33... Bd4+ {[%clk 0:00:17.5]} 34. Kh1 {[%clk 0:00:17.6]} 34... Rf1+ {[%clk
0:00:18.5]} 0-1

[Event "*** Titled Tuesday Blitz"]
[Site "Chess.com"]
[Date "2019.09.03"]
[Round "6"]
[White "Cukiero"]
[Black "yiy1156"]
[Result "0-1"]
[WhiteElo "2404"]
[BlackElo "2565"]
[TimeControl "180+2"]
[EndTime "16:19:45 PDT"]
[Termination "yiy1156 won by resignation"]

1. c4 {[%clk 0:03:00.5]} 1... Nf6 {[%clk 0:02:58.9]} 2. Nc3 {[%clk 0:03:01.4]}
2... g6 {[%clk 0:02:59.7]} 3. g3 {[%clk 0:03:01.9]} 3... Bg7 {[%clk 0:02:59.1]}
4. Bg2 {[%clk 0:03:03]} 4... O-O {[%clk 0:02:59.9]} 5. d4 {[%clk 0:03:04.4]}
5... c5 {[%clk 0:02:59.5]} 6. d5 {[%clk 0:02:55.8]} 6... d6 {[%clk 0:02:59]} 7.
Nf3 {[%clk 0:02:53]} 7... Na6 {[%clk 0:02:59.3]} 8. O-O {[%clk 0:02:49.2]} 8...
Nc7 {[%clk 0:03:00.7]} 9. Ne1 {[%clk 0:02:39.4]} 9... Rb8 {[%clk 0:02:57.3]} 10.
a4 {[%clk 0:02:38.5]} 10... b6 {[%clk 0:02:53.9]} 11. e4 {[%clk 0:02:32.3]}
11... e6 {[%clk 0:02:49.8]} 12. Bf4 {[%clk 0:02:03.2]} 12... exd5 {[%clk
0:02:46.1]} 13. cxd5 {[%clk 0:01:58]} 13... Ba6 {[%clk 0:02:19.6]} 14. Nd3
{[%clk 0:01:52.7]} 14... Nh5 {[%clk 0:02:20.1]} 15. Be3 {[%clk 0:01:49.5]} 15...
Qd7 {[%clk 0:02:16.6]} 16. Re1 {[%clk 0:01:45.7]} 16... f6 {[%clk 0:01:57.8]}
17. g4 {[%clk 0:01:32.1]} 17... Bxd3 {[%clk 0:01:54.9]} 18. gxh5 {[%clk
0:01:32.8]} 18... Bc4 {[%clk 0:01:52.7]} 19. hxg6 {[%clk 0:01:33]} 19... hxg6
{[%clk 0:01:54]} 20. b3 {[%clk 0:01:28.5]} 20... Ba6 {[%clk 0:01:38.4]} 21. Rc1
{[%clk 0:01:27.9]} 21... f5 {[%clk 0:01:19.3]} 22. exf5 {[%clk 0:01:19.8]} 22...
Qxf5 {[%clk 0:01:17.9]} 23. Ne4 {[%clk 0:01:16.9]} 23... Nxd5 {[%clk 0:01:09.1]}
24. Nxd6 {[%clk 0:01:03.4]} 24... Nxe3 {[%clk 0:01:10.5]} 25. Nxf5 {[%clk
0:01:04.5]} 25... Nxd1 {[%clk 0:01:11.1]} 26. Ne7+ {[%clk 0:01:04.9]} 26... Kh7
{[%clk 0:01:09.9]} 27. Rcxd1 {[%clk 0:01:05.6]} 27... Bd4 {[%clk 0:01:07.3]} 28.
Nc6 {[%clk 0:00:43.1]} 28... Bxf2+ {[%clk 0:01:01.2]} 29. Kh1 {[%clk 0:00:43.4]}
29... Bxe1 {[%clk 0:01:03.1]} 30. Nxb8 {[%clk 0:00:43.8]} 30... Rxb8 {[%clk
0:01:05]} 31. Rxe1 {[%clk 0:00:44.6]} 31... Rg8 {[%clk 0:00:48.9]} 32. a5 {[%clk
0:00:33]} 32... Bb5 {[%clk 0:00:45.6]} 33. axb6 {[%clk 0:00:33.1]} 33... axb6
{[%clk 0:00:46.2]} 34. Re6 {[%clk 0:00:33.8]} 34... Re8 {[%clk 0:00:45.3]} 35.
Rxe8 {[%clk 0:00:27.4]} 35... Bxe8 {[%clk 0:00:46.9]} 36. Bd5 {[%clk 0:00:28.3]}
36... Kg7 {[%clk 0:00:45.8]} 37. Kg2 {[%clk 0:00:28]} 37... Kf6 {[%clk
0:00:47.7]} 38. Kg3 {[%clk 0:00:29]} 38... Bf7 {[%clk 0:00:47.1]} 39. Bc4 {[%clk
0:00:29.6]} 39... Bxc4 {[%clk 0:00:36.7]} 40. bxc4 {[%clk 0:00:31.5]} 40... Ke5
{[%clk 0:00:38.6]} 41. Kg4 {[%clk 0:00:31.6]} 41... Kd4 {[%clk 0:00:40.1]} 42.
Kg5 {[%clk 0:00:33.1]} 42... Kxc4 {[%clk 0:00:41.3]} 43. Kxg6 {[%clk 0:00:34.6]}
43... b5 {[%clk 0:00:41.2]} 44. h4 {[%clk 0:00:35.7]} 44... b4 {[%clk
0:00:42.8]} 45. h5 {[%clk 0:00:37.2]} 45... b3 {[%clk 0:00:44.4]} 46. h6 {[%clk
0:00:39.1]} 46... b2 {[%clk 0:00:46.1]} 0-1

[Event "*** Titled Tuesday Blitz"]
[Site "Chess.com"]
[Date "2019.09.03"]
[Round "6"]
[White "2nd_life"]
[Black "JAN2404"]
[Result "1-0"]
[WhiteElo "2376"]
[BlackElo "1691"]
[TimeControl "180+2"]
[EndTime "16:19:57 PDT"]
[Termination "2nd_life won by checkmate"]

1. e4 {[%clk 0:02:59.8]} 1... c5 {[%clk 0:03:01.1]} 2. Nf3 {[%clk 0:02:58.4]}
2... d6 {[%clk 0:03:01.9]} 3. b4 {[%clk 0:02:57.9]} 3... cxb4 {[%clk 0:02:58.5]}
4. a3 {[%clk 0:02:58.9]} 4... Nf6 {[%clk 0:02:59.3]} 5. Bd3 {[%clk 0:02:58.4]}
5... Nc6 {[%clk 0:02:58.5]} 6. O-O {[%clk 0:02:47.6]} 6... g6 {[%clk 0:02:54.4]}
7. Bb2 {[%clk 0:02:38.6]} 7... Bg7 {[%clk 0:02:54.9]} 8. h3 {[%clk 0:02:36.7]}
8... O-O {[%clk 0:02:53.9]} 9. Re1 {[%clk 0:02:37.1]} 9... e5 {[%clk 0:02:19.2]}
10. Bf1 {[%clk 0:02:23.5]} 10... bxa3 {[%clk 0:02:13]} 11. Nxa3 {[%clk
0:02:22.3]} 11... Be6 {[%clk 0:02:13.6]} 12. c4 {[%clk 0:02:20.8]} 12... Rc8
{[%clk 0:02:10.9]} 13. d3 {[%clk 0:02:20.3]} 13... Nd7 {[%clk 0:02:09.9]} 14.
Nb5 {[%clk 0:02:15.9]} 14... Nc5 {[%clk 0:02:01.7]} 15. Nxa7 {[%clk 0:02:12.9]}
15... Nxa7 {[%clk 0:02:02.7]} 16. Rxa7 {[%clk 0:02:13.7]} 16... Qb6 {[%clk
0:02:04.4]} 17. Ra2 {[%clk 0:02:07.7]} 17... Ra8 {[%clk 0:02:05]} 18. Qa1 {[%clk
0:02:01.3]} 18... Nb3 {[%clk 0:01:37.8]} 19. Qb1 {[%clk 0:01:47.5]} 19... f5
{[%clk 0:01:33.4]} 20. Rxa8 {[%clk 0:01:37.4]} 20... Rxa8 {[%clk 0:01:33.2]} 21.
exf5 {[%clk 0:01:02.1]} 21... Bxf5 {[%clk 0:01:29.8]} 22. g4 {[%clk 0:00:58.3]}
22... Bd7 {[%clk 0:01:26.2]} 23. Bc3 {[%clk 0:00:56.7]} 23... Bc6 {[%clk
0:01:23.8]} 24. Bg2 {[%clk 0:00:49.6]} 24... Ra6 {[%clk 0:01:06.9]} 25. Qc2
{[%clk 0:00:30.3]} 25... Nc5 {[%clk 0:00:56.3]} 26. d4 {[%clk 0:00:23.5]} 26...
exd4 {[%clk 0:00:36.4]} 27. Nxd4 {[%clk 0:00:23.8]} 27... Bxg2 {[%clk
0:00:34.9]} 28. Kxg2 {[%clk 0:00:24.1]} 28... Bxd4 {[%clk 0:00:20.1]} 29. Bxd4
{[%clk 0:00:24.8]} 29... Qc6+ {[%clk 0:00:21.3]} 30. Kg1 {[%clk 0:00:25.5]}
30... b5 {[%clk 0:00:20.9]} 31. cxb5 {[%clk 0:00:08.8]} 31... Qxb5 {[%clk
0:00:22.8]} 32. Qd2 {[%clk 0:00:07.1]} 32... Qc6 {[%clk 0:00:20.6]} 33. Qg5
{[%clk 0:00:05.4]} 33... Ra8 {[%clk 0:00:18.5]} 34. Qf6 {[%clk 0:00:06.2]} 34...
Qb7 {[%clk 0:00:16.1]} 35. Qh8+ {[%clk 0:00:02.8]} 35... Kf7 {[%clk 0:00:16.8]}
36. Qxh7+ {[%clk 0:00:04.2]} 36... Kf8 {[%clk 0:00:16]} 37. Qh8+ {[%clk
0:00:05.5]} 37... Kf7 {[%clk 0:00:17]} 38. Qg7# {[%clk 0:00:07.1]} 1-0

[Event "*** Titled Tuesday Blitz"]
[Site "Chess.com"]
[Date "2019.09.03"]
[Round "6"]
[White "adriangschnitzer"]
[Black "mortngabriel"]
[Result "0-1"]
[WhiteElo "2521"]
[BlackElo "2324"]
[TimeControl "180+2"]
[EndTime "16:20:06 PDT"]
[Termination "mortngabriel won by checkmate"]

1. e4 {[%clk 0:03:01.9]} 1... c5 {[%clk 0:02:58.3]} 2. Nf3 {[%clk 0:03:02.3]}
2... e6 {[%clk 0:02:57.8]} 3. d4 {[%clk 0:03:03.1]} 3... cxd4 {[%clk 0:02:59.7]}
4. Nxd4 {[%clk 0:03:04.6]} 4... Nc6 {[%clk 0:03:01.3]} 5. Nc3 {[%clk 0:03:05]}
5... Qc7 {[%clk 0:03:02.4]} 6. Be3 {[%clk 0:03:05.5]} 6... a6 {[%clk 0:03:03.5]}
7. Qf3 {[%clk 0:03:07.1]} 7... d6 {[%clk 0:02:54.6]} 8. O-O-O {[%clk 0:03:07.4]}
8... Bd7 {[%clk 0:02:46.3]} 9. Qg3 {[%clk 0:03:06.6]} 9... Rc8 {[%clk
0:02:44.7]} 10. f4 {[%clk 0:03:07.5]} 10... b5 {[%clk 0:02:43.9]} 11. a3 {[%clk
0:02:58.6]} 11... b4 {[%clk 0:02:37.5]} 12. axb4 {[%clk 0:02:55.6]} 12... Nxb4
{[%clk 0:02:39.4]} 13. Qf2 {[%clk 0:02:45.2]} 13... Nf6 {[%clk 0:02:23.7]} 14.
h3 {[%clk 0:02:37.6]} 14... Qa5 {[%clk 0:02:17.3]} 15. Nb3 {[%clk 0:02:31.3]}
15... Na2+ {[%clk 0:02:13.8]} 16. Nxa2 {[%clk 0:02:20.7]} 16... Qxa2 {[%clk
0:02:14.9]} 17. Rd3 {[%clk 0:01:52.4]} 17... Bb5 {[%clk 0:01:47.6]} 18. Rc3
{[%clk 0:01:41.7]} 18... Rxc3 {[%clk 0:01:46.9]} 19. bxc3 {[%clk 0:01:43.6]}
19... Nxe4 {[%clk 0:01:46.6]} 20. Qe1 {[%clk 0:01:20.6]} 20... d5 {[%clk
0:01:44.9]} 21. Bxb5+ {[%clk 0:01:13.1]} 21... axb5 {[%clk 0:01:45]} 22. Kd1
{[%clk 0:01:00.7]} 22... Qb1+ {[%clk 0:01:12.2]} 23. Bc1 {[%clk 0:00:57.9]}
23... Be7 {[%clk 0:01:04.8]} 24. g4 {[%clk 0:00:51.9]} 24... Bf6 {[%clk
0:00:57.9]} 25. Nd4 {[%clk 0:00:53]} 25... b4 {[%clk 0:00:56]} 26. g5 {[%clk
0:00:52.5]} 26... Nxc3+ {[%clk 0:00:56.4]} 27. Qxc3 {[%clk 0:00:51.4]} 27...
bxc3 {[%clk 0:00:57.3]} 28. gxf6 {[%clk 0:00:53.3]} 28... gxf6 {[%clk
0:00:57.9]} 29. Re1 {[%clk 0:00:37.6]} 29... Rg8 {[%clk 0:00:54.7]} 30. Ke2
{[%clk 0:00:37.3]} 30... Rg2+ {[%clk 0:00:43.9]} 31. Kf3 {[%clk 0:00:27.5]}
31... Rh2 {[%clk 0:00:26.2]} 32. Bd2 {[%clk 0:00:13.9]} 32... Qb4 {[%clk
0:00:23.5]} 33. Be3 {[%clk 0:00:15.3]} 33... Rxh3+ {[%clk 0:00:22.6]} 34. Kg2
{[%clk 0:00:12.9]} 34... Rxe3 {[%clk 0:00:22.9]} 35. Rxe3 {[%clk 0:00:12.3]}
35... Qxd4 {[%clk 0:00:23.9]} 36. Rd3 {[%clk 0:00:13.7]} 36... Qxd3 {[%clk
0:00:25.5]} 37. cxd3 {[%clk 0:00:14.3]} 37... c2 {[%clk 0:00:27.4]} 38. f5
{[%clk 0:00:16.2]} 38... exf5 {[%clk 0:00:27.7]} 39. Kf3 {[%clk 0:00:18.1]}
39... c1=Q {[%clk 0:00:29.1]} 40. d4 {[%clk 0:00:20]} 40... Qc3+ {[%clk
0:00:29.7]} 41. Kf4 {[%clk 0:00:21]} 41... Qxd4+ {[%clk 0:00:31]} 42. Kxf5
{[%clk 0:00:22.9]} 42... Qe5+ {[%clk 0:00:32]} 43. Kg4 {[%clk 0:00:24.8]} 43...
d4 {[%clk 0:00:33.1]} 44. Kh4 {[%clk 0:00:26.7]} 44... d3 {[%clk 0:00:34.6]} 45.
Kg4 {[%clk 0:00:28.5]} 45... d2 {[%clk 0:00:36.1]} 46. Kh4 {[%clk 0:00:29]}
46... d1=Q {[%clk 0:00:37.4]} 47. Kh3 {[%clk 0:00:30.4]} 47... Qh1+ {[%clk
0:00:36.7]} 48. Kg4 {[%clk 0:00:30.1]} 48... Qg2+ {[%clk 0:00:37.8]} 49. Kh4
{[%clk 0:00:31.2]} 49... Qeg5# {[%clk 0:00:39.7]} 0-1

[Event "*** Titled Tuesday Blitz"]
[Site "Chess.com"]
[Date "2019.09.03"]
[Round "6"]
[White "TheFireChess"]
[Black "chessdjw"]
[Result "0-1"]
[WhiteElo "2501"]
[BlackElo "2685"]
[TimeControl "180+2"]
[EndTime "16:20:08 PDT"]
[Termination "chessdjw won by resignation"]

1. g3 {[%clk 0:03:01.9]} 1... g6 {[%clk 0:02:58.1]} 2. Bg2 {[%clk 0:03:03.1]}
2... Bg7 {[%clk 0:03:00]} 3. d3 {[%clk 0:03:04.6]} 3... d6 {[%clk 0:03:00.5]} 4.
Nc3 {[%clk 0:03:06.2]} 4... e5 {[%clk 0:03:01.1]} 5. e4 {[%clk 0:03:07.6]} 5...
f5 {[%clk 0:03:02.1]} 6. Be3 {[%clk 0:03:08]} 6... Nc6 {[%clk 0:03:01.3]} 7. Qd2
{[%clk 0:03:08.4]} 7... Be6 {[%clk 0:02:55.3]} 8. exf5 {[%clk 0:03:04.4]} 8...
gxf5 {[%clk 0:02:53.6]} 9. Bg5 {[%clk 0:03:03.8]} 9... Qd7 {[%clk 0:02:45.7]}
10. Nge2 {[%clk 0:03:02.3]} 10... h6 {[%clk 0:02:42.7]} 11. Be3 {[%clk
0:02:58.9]} 11... Nf6 {[%clk 0:02:42.5]} 12. h3 {[%clk 0:02:58.5]} 12... d5
{[%clk 0:02:37.1]} 13. d4 {[%clk 0:02:57.6]} 13... Ne4 {[%clk 0:02:37.9]} 14.
Nxe4 {[%clk 0:02:55.5]} 14... fxe4 {[%clk 0:02:34.4]} 15. O-O-O {[%clk
0:02:51.7]} 15... O-O-O {[%clk 0:02:31.7]} 16. a3 {[%clk 0:02:48]} 16... Kb8
{[%clk 0:02:30.9]} 17. Qc3 {[%clk 0:02:23.6]} 17... Rhf8 {[%clk 0:02:28]} 18. g4
{[%clk 0:02:20.1]} 18... Rf7 {[%clk 0:01:46]} 19. dxe5 {[%clk 0:02:15.9]} 19...
Bxe5 {[%clk 0:01:41.1]} 20. Nd4 {[%clk 0:02:14.7]} 20... Nxd4 {[%clk 0:01:38.9]}
21. Bxd4 {[%clk 0:02:16.3]} 21... Bxd4 {[%clk 0:01:15.3]} 22. Qxd4 {[%clk
0:02:15.1]} 22... Rdf8 {[%clk 0:01:16.5]} 23. Rd2 {[%clk 0:02:15.4]} 23... Qd6
{[%clk 0:01:12.5]} 24. Qe3 {[%clk 0:02:08.9]} 24... Rf4 {[%clk 0:00:51.4]} 25.
Rhd1 {[%clk 0:02:06]} 25... Qb6 {[%clk 0:00:51.4]} 26. Qc3 {[%clk 0:01:11.7]}
26... Rxf2 {[%clk 0:00:36.2]} 27. Qg7 {[%clk 0:01:09.9]} 27... a6 {[%clk
0:00:21.4]} 28. Qxh6 {[%clk 0:01:06.5]} 28... e3 {[%clk 0:00:19]} 29. Rxf2
{[%clk 0:01:00.9]} 29... Rxf2 {[%clk 0:00:20.9]} 30. Bh1 {[%clk 0:00:14.4]}
30... Rxc2+ {[%clk 0:00:20.1]} 31. Kxc2 {[%clk 0:00:11.7]} 31... Bf5+ {[%clk
0:00:20.9]} 32. gxf5 {[%clk 0:00:13.3]} 32... Qxh6 {[%clk 0:00:22.3]} 33. Bxd5
{[%clk 0:00:14.4]} 33... Qxh3 {[%clk 0:00:19.9]} 34. Bc4 {[%clk 0:00:14.8]}
34... Qxf5+ {[%clk 0:00:20.4]} 35. Bd3 {[%clk 0:00:15.7]} 35... Qc5+ {[%clk
0:00:21.5]} 36. Kb1 {[%clk 0:00:16.5]} 36... Ka7 {[%clk 0:00:23.1]} 37. Re1
{[%clk 0:00:17.8]} 37... Qd4 {[%clk 0:00:23.4]} 38. Kc2 {[%clk 0:00:18.6]} 38...
b5 {[%clk 0:00:23.9]} 39. b4 {[%clk 0:00:19]} 39... Kb6 {[%clk 0:00:24.7]} 40.
Re2 {[%clk 0:00:19.6]} 40... a5 {[%clk 0:00:25.5]} 41. bxa5+ {[%clk 0:00:18.7]}
41... Kxa5 {[%clk 0:00:27.4]} 42. Rh2 {[%clk 0:00:19.9]} 42... c5 {[%clk
0:00:27.5]} 43. Rh5 {[%clk 0:00:20.9]} 43... c4 {[%clk 0:00:27.2]} 44. Bf1
{[%clk 0:00:22]} 44... Qd2+ {[%clk 0:00:27.5]} 0-1

[Event "*** Titled Tuesday Blitz"]
[Site "Chess.com"]
[Date "2019.09.03"]
[Round "6"]
[White "SONOFHOLYGOD"]
[Black "ace_mar"]
[Result "1-0"]
[WhiteElo "2574"]
[BlackElo "2325"]
[TimeControl "180+2"]
[EndTime "16:20:13 PDT"]
[Termination "SONOFHOLYGOD won by resignation"]

1. e4 {[%clk 0:03:01.9]} 1... e5 {[%clk 0:03:00.9]} 2. Nc3 {[%clk 0:03:01.8]}
2... Nf6 {[%clk 0:03:02.2]} 3. f4 {[%clk 0:03:02.7]} 3... d5 {[%clk 0:03:03.5]}
4. fxe5 {[%clk 0:03:03.6]} 4... Nxe4 {[%clk 0:03:04.6]} 5. Nf3 {[%clk
0:03:05.2]} 5... Be7 {[%clk 0:03:05.1]} 6. d3 {[%clk 0:03:03]} 6... Nxc3 {[%clk
0:03:05.9]} 7. bxc3 {[%clk 0:03:04.9]} 7... O-O {[%clk 0:03:02.5]} 8. d4 {[%clk
0:03:06]} 8... c5 {[%clk 0:03:02.5]} 9. Bd3 {[%clk 0:03:06.1]} 9... Nc6 {[%clk
0:03:00.8]} 10. O-O {[%clk 0:03:06.2]} 10... f6 {[%clk 0:03:00.9]} 11. exf6
{[%clk 0:03:06.8]} 11... Bxf6 {[%clk 0:03:02.4]} 12. dxc5 {[%clk 0:02:59.7]}
12... Bxc3 {[%clk 0:02:49.7]} 13. Bxh7+ {[%clk 0:02:54.8]} 13... Kxh7 {[%clk
0:02:42.2]} 14. Qd3+ {[%clk 0:02:43.2]} 14... Bf5 {[%clk 0:02:42.2]} 15. Qxc3
{[%clk 0:02:44.5]} 15... d4 {[%clk 0:02:39.2]} 16. Qb3 {[%clk 0:02:41.8]} 16...
Qd7 {[%clk 0:02:28.1]} 17. Ng5+ {[%clk 0:02:40.7]} 17... Kh8 {[%clk 0:02:28.1]}
18. Bf4 {[%clk 0:02:35.3]} 18... d3 {[%clk 0:02:17.2]} 19. Bd6 {[%clk
0:02:33.8]} 19... dxc2 {[%clk 0:02:02.7]} 20. g4 {[%clk 0:02:20]} 20... Bxg4
{[%clk 0:01:26.1]} 21. Qxc2 {[%clk 0:02:14.3]} 21... Bf5 {[%clk 0:01:19.1]} 22.
Qf2 {[%clk 0:02:01.8]} 22... Rf6 {[%clk 0:01:18.4]} 23. Rae1 {[%clk 0:01:51.7]}
23... Re8 {[%clk 0:01:15.1]} 24. Qh4+ {[%clk 0:01:49.2]} 24... Rh6 {[%clk
0:01:11.1]} 25. Qc4 {[%clk 0:01:48.8]} 25... Rf6 {[%clk 0:00:41.5]} 26. Rd1
{[%clk 0:00:23.8]} 26... Be6 {[%clk 0:00:22.2]} 27. Qh4+ {[%clk 0:00:23.5]}
27... Rh6 {[%clk 0:00:23.2]} 28. Qg3 {[%clk 0:00:22]} 28... Rg8 {[%clk
0:00:10.8]} 29. Rd2 {[%clk 0:00:21.3]} 29... Qe8 {[%clk 0:00:11.4]} 30. Re2
{[%clk 0:00:21.7]} 30... Nd4 {[%clk 0:00:09.2]} 31. Re4 {[%clk 0:00:22.1]} 31...
Nf5 {[%clk 0:00:10.3]} 32. Qe5 {[%clk 0:00:21.7]} 32... Nxd6 {[%clk 0:00:08.3]}
33. cxd6 {[%clk 0:00:22.4]} 33... Bd7 {[%clk 0:00:09.5]} 34. Qxe8 {[%clk
0:00:22]} 34... Rxe8 {[%clk 0:00:11.4]} 35. Nf7+ {[%clk 0:00:22.3]} 35... Kg8
{[%clk 0:00:11.7]} 36. Nxh6+ {[%clk 0:00:22.8]} 36... gxh6 {[%clk 0:00:13.6]}
37. Rxe8+ {[%clk 0:00:23.1]} 37... Bxe8 {[%clk 0:00:15.5]} 38. Rf4 {[%clk
0:00:22.4]} 38... Bd7 {[%clk 0:00:15]} 39. a3 {[%clk 0:00:23.5]} 39... Kg7
{[%clk 0:00:15.9]} 40. Kf2 {[%clk 0:00:25]} 40... Bc6 {[%clk 0:00:16.9]} 41. Ke3
{[%clk 0:00:26.4]} 41... Bd7 {[%clk 0:00:18.3]} 42. Kd4 {[%clk 0:00:27.9]} 42...
Kg6 {[%clk 0:00:18.6]} 43. Ke5 {[%clk 0:00:29.3]} 43... Kg7 {[%clk 0:00:19.2]}
44. Rc4 {[%clk 0:00:29.4]} 44... Bc6 {[%clk 0:00:18.4]} 45. Rxc6 {[%clk
0:00:29.6]} 45... bxc6 {[%clk 0:00:20.3]} 1-0